bitfinex/quotes_BTCUSD_20250225
["timestamp","ask_amount","ask_price","bid_price","bid_amount"]
[1740443352539,0.51303294,92147.0,92146.0,0.01079805]
[1740443352743,0.51303294,92147.0,92129.0,0.02]
[1740443352941,0.51303294,92147.0,92131.0,0.0001294]
[1740443353120,0.00809383,92133.0,92131.0,0.0001294]
[1740443355067,0.50809383,92133.0,92131.0,0.0001294]
[1740443360336,0.49109671,92133.0,92131.0,0.0001294]
[1740443361600,0.49999971,92133.0,92131.0,0.0001294]
[1740443361991,0.51123256,92133.0,92131.0,0.0001294]
[1740443363278,0.49423544,92133.0,92131.0,0.0001294]
[1740443363909,0.00807915,92132.0,92131.0,0.0001294]
[1740443364117,0.00807915,92132.0,92115.0,0.15]
[1740443364515,0.00807915,92132.0,92122.0,0.02]
[1740443366139,0.00807915,92132.0,92131.0,0.0008505]
[1740443366397,0.50231443,92133.0,92100.0,0.02]
[1740443366514,0.00799328,92108.0,92099.0,0.02]
[1740443366723,0.00799328,92108.0,92095.0,0.02]
[1740443366952,0.00799328,92108.0,92099.0,0.02]
[1740443367154,0.00799328,92108.0,92093.0,0.15]
[1740443367360,0.00799328,92108.0,92092.0,0.01079805]
[1740443367561,0.01731128,92108.0,92092.0,0.01079805]
[1740443368511,0.50799328,92108.0,92092.0,0.01079805]
[1740443369131,0.50799328,92108.0,92097.0,0.02]
[1740443369552,0.50799328,92108.0,92092.0,0.01079805]
[1740443373186,0.50799328,92108.0,92090.0,0.02]
[1740443374046,0.50799328,92108.0,92089.0,0.02]
[1740443374269,0.50799328,92108.0,92075.0,0.30465805]
[1740443374270,0.50799328,92108.0,92075.0,0.27535805]
[1740443374652,0.0787,92107.0,92075.0,0.27535805]
[1740443375426,0.0787,92107.0,92076.0,0.15]
[1740443375653,0.16550038,92107.0,92075.0,0.25535805]
[1740443376065,0.16550038,92107.0,92076.0,0.15]
[1740443376279,0.0083628,92079.0,92076.0,0.15]
[1740443376689,0.08680038,92077.0,92063.0,0.01079805]
[1740443376942,0.00799955,92052.0,92048.0,0.0008502]
[1740443377563,0.00799955,92052.0,92051.0,0.00128152]
[1740443378192,0.01241037,92078.0,92051.0,0.00128152]
[1740443378432,0.490682,92052.0,92051.0,0.00128152]
[1740443378631,0.08680038,92072.0,92051.0,0.00128152]
[1740443379654,0.00807564,92052.0,92051.0,0.00128152]
[1740443380073,0.02622848,92072.0,92051.0,0.00128152]
[1740443380485,0.00828835,92052.0,92051.0,0.00128152]
[1740443382011,0.0266032,92052.0,92051.0,0.00128152]
[1740443382263,0.02527635,92052.0,92051.0,0.00128152]
[1740443382685,0.0266032,92052.0,92051.0,0.00128152]
[1740443382899,0.0266032,92052.0,92007.0,0.02]
[1740443383114,0.00132685,92051.0,92025.0,0.2447695]
[1740443383914,0.08812723,92051.0,92025.0,0.2447695]
[1740443384332,0.08680038,92051.0,92025.0,0.2447695]
[1740443384571,0.50828835,92052.0,92025.0,0.2447695]
[1740443384719,0.5,92052.0,92034.0,0.02]
[1740443384896,0.5,92052.0,92046.0,0.02]
[1740443385124,0.5,92052.0,92047.0,0.15]
[1740443385352,0.5,92052.0,92051.0,0.02]
[1740443385575,0.48730468,92052.0,92051.0,0.02]
[1740443385851,0.48730468,92052.0,92051.0,0.68341058]
[1740443386309,0.07485631,92052.0,92051.0,0.79951058]
[1740443386536,0.07654226,92120.0,92086.0,0.02]
[1740443386793,0.001701,92132.0,92091.0,0.02]
[1740443387018,0.10003962,92131.0,92096.0,0.02]
[1740443387239,0.10003962,92131.0,92100.0,0.02]
[1740443387240,0.01323924,92131.0,92100.0,0.02]
[1740443387464,0.001701,92132.0,92102.0,0.15]
[1740443387691,0.50213258,92132.0,92103.0,0.02]
[1740443389056,0.51507261,92132.0,92103.0,0.02]
[1740443389169,0.51507261,92132.0,92102.0,0.15]
[1740443389378,0.08680038,92130.0,92101.0,0.19101058]
[1740443389581,0.08680038,92120.0,92101.0,0.19101058]
[1740443389794,0.13210038,92107.0,92071.0,0.19101058]
[1740443389996,0.0764,92106.0,92071.0,0.19101058]
[1740443390399,0.0764,92106.0,92072.0,0.15]
[1740443390600,0.0083638,92103.0,92071.0,0.19101058]
[1740443391600,0.00705609,92103.0,92071.0,0.19101058]
[1740443391817,0.0074874,92103.0,92071.0,0.19101058]
[1740443392024,0.01122592,92102.0,92071.0,0.19101058]
[1740443392517,0.09637511,92095.0,92072.0,0.51341058]
[1740443392737,0.09637511,92095.0,92072.0,0.3224]
[1740443392944,0.08680038,92094.0,92072.0,0.3224]
[1740443394347,0.08680038,92094.0,92064.0,0.19101058]
[1740443394537,0.0813,92083.0,92033.0,0.3224]
[1740443394919,0.5813,92083.0,92046.0,0.0138]
[1740443395134,0.5813,92083.0,92042.0,0.02]
[1740443395345,0.5813,92083.0,92043.0,0.51341058]
[1740443395562,0.0487,92082.0,92043.0,0.51341058]
[1740443395984,0.48485475,92083.0,92043.0,0.51341058]
[1740443396549,0.08680038,92074.0,92043.0,0.51341058]
[1740443396758,0.48485475,92083.0,92044.0,0.51341058]
[1740443397112,0.49999975,92083.0,92044.0,0.51341058]
[1740443397310,0.08680038,92082.0,92044.0,0.51341058]
[1740443397830,0.08680038,92082.0,92044.0,0.51354008]
[1740443398092,0.08680038,92082.0,92044.0,0.46381893]
[1740443398460,0.09637511,92055.0,92044.0,0.46381893]
[1740443398658,0.09637511,92055.0,92044.0,0.3225295]
[1740443400804,0.59637511,92055.0,92044.0,0.3225295]
[1740443401484,0.59637511,92055.0,92045.0,0.15]
[1740443401896,0.09637511,92054.0,92045.0,0.15]
[1740443402469,0.09637511,92054.0,92046.0,0.0479]
[1740443403255,0.09637511,92054.0,92047.0,0.2269]
[1740443403468,0.09637511,92054.0,92053.0,0.04]
[1740443405209,0.09637511,92054.0,92053.0,0.65368943]
[1740443405411,0.09637511,92054.0,92053.0,0.63368943]
[1740443405622,0.09637511,92054.0,92053.0,0.46368943]
[1740443406681,0.59637511,92055.0,92053.0,0.46368943]
[1740443406913,0.59637511,92055.0,92054.0,0.15]
[1740443407109,0.59637511,92055.0,92054.0,0.17]
[1740443407352,0.59637511,92055.0,92054.0,0.19]
[1740443407553,0.59637511,92055.0,92054.0,0.65368943]
[1740443408163,0.59637511,92055.0,92054.0,0.73058943]
[1740443408485,0.254407,92055.0,92054.0,1.57278073]
[1740443408636,0.130507,92055.0,92054.0,1.46138073]
[1740443408841,0.118107,92055.0,92054.0,1.46138073]
[1740443409817,0.118107,92055.0,92054.0,1.44973532]
[1740443409818,0.02173189,92055.0,92054.0,1.44973532]
[1740443410024,0.49999989,92055.0,92054.0,1.46973532]
[1740443411936,0.17759989,92055.0,92054.0,1.14733532]
[1740443412185,0.09637511,92073.0,92072.0,0.04]
[1740443412367,0.09637511,92073.0,92072.0,0.66744943]
[1740443413266,0.09637511,92073.0,92072.0,0.66757893]
[1740443413467,0.09637511,92073.0,92072.0,0.68423052]
[1740443414723,0.5,92081.0,92080.0,0.04]
[1740443417187,0.5,92081.0,92080.0,0.02]
[1740443417624,0.49999966,92081.0,92080.0,0.03376]
[1740443418424,0.49999966,92081.0,92080.0,0.18376]
[1740443418938,0.49999966,92081.0,92080.0,0.20376]
[1740443419126,0.49999966,92081.0,92080.0,0.66744943]
[1740443419709,0.47265592,92081.0,92080.0,0.66744943]
[1740443419915,0.47265592,92081.0,92080.0,0.64744943]
[1740443420122,0.47265592,92081.0,92080.0,0.66744943]
[1740443420898,0.49999992,92081.0,92080.0,0.64744943]
[1740443421121,0.49999992,92081.0,92080.0,0.66744943]
[1740443421922,0.51124113,92081.0,92080.0,0.66744943]
[1740443422332,0.51124113,92081.0,92080.0,0.51744943]
[1740443422555,0.51103828,92081.0,92080.0,0.51744943]
[1740443423471,0.51103828,92081.0,92080.0,0.65368943]
[1740443423802,0.51124028,92081.0,92080.0,0.66744943]
[1740443424539,0.51124028,92081.0,92080.0,0.67542788]
[1740443425154,0.46458878,92081.0,92080.0,0.67542788]
[1740443426368,0.49999978,92081.0,92080.0,0.67542788]
[1740443427513,0.49999978,92081.0,92080.0,0.67627598]
[1740443428346,0.50169598,92081.0,92080.0,0.67627598]
[1740443429105,0.35964855,92081.0,92080.0,0.67627598]
[1740443429456,0.0016954,92120.0,92119.0,0.04]
[1740443429670,0.0016954,92120.0,92119.0,0.05376]
[1740443429883,0.0016954,92120.0,92119.0,0.66744943]
[1740443430794,0.00212698,92120.0,92119.0,0.66744943]
[1740443431557,0.00212698,92120.0,92119.0,0.68395879]
[1740443432389,0.00212698,92120.0,92119.0,0.69204471]
[1740443432832,0.46943345,92122.0,92121.0,0.04]
[1740443433052,0.43673992,92122.0,92121.0,0.04]
[1740443433246,0.43673992,92122.0,92121.0,0.02]
[1740443433909,0.43673992,92122.0,92121.0,0.04]
[1740443434105,0.49999992,92122.0,92121.0,0.05376]
[1740443434327,0.49999992,92122.0,92121.0,0.03376]
[1740443434476,0.49999992,92122.0,92121.0,0.05376]
[1740443434674,0.49999992,92122.0,92121.0,0.03376]
[1740443435082,0.49999992,92122.0,92121.0,0.48368943]
[1740443435288,0.49999992,92122.0,92121.0,0.46368943]
[1740443435690,0.57809992,92122.0,92121.0,0.3224]
[1740443437453,0.57809992,92122.0,92121.0,0.3424]
[1740443437651,0.49999992,92122.0,92121.0,0.63368943]
[1740443437940,0.49999992,92122.0,92121.0,0.65368943]
[1740443438162,0.49999992,92122.0,92121.0,0.67004545]
[1740443438411,0.49999992,92122.0,92121.0,0.67819104]
[1740443438605,0.31306369,92122.0,92121.0,0.79269104]
[1740443438749,0.001701,92132.0,92131.0,0.3045]
[1740443439161,0.001701,92132.0,92131.0,1.24108073]
[1740443439370,0.001701,92132.0,92131.0,1.27153823]
[1740443439541,0.001701,92132.0,92131.0,1.24108073]
[1740443439753,0.001701,92132.0,92131.0,1.27153823]
[1740443440458,0.001701,92132.0,92131.0,1.24108073]
[1740443442312,0.001701,92132.0,92131.0,1.48560073]
[1740443443134,0.001701,92132.0,92131.0,1.46560073]
[1740443443285,0.001701,92132.0,92131.0,1.48560073]
[1740443443486,0.500402,92133.0,92132.0,0.3045]
[1740443443648,0.50053138,92133.0,92132.0,0.3045]
[1740443443853,0.50053138,92133.0,92132.0,0.3349575]
[1740443444363,0.50053138,92133.0,92132.0,0.3487175]
[1740443444562,0.42367499,92133.0,92132.0,0.31826]
[1740443444768,0.17088886,92133.0,92132.0,0.3487175]
[1740443444989,0.0832,92170.0,92146.0,0.3045]
[1740443445252,0.0832,92170.0,92169.0,0.02]
[1740443445438,0.08332948,92170.0,92169.0,0.63198803]
[1740443445645,0.08332948,92170.0,92169.0,0.66244553]
[1740443446708,0.00012948,92170.0,92169.0,0.63198803]
[1740443447644,0.00012948,92170.0,92169.0,0.66244553]
[1740443448080,0.00012948,92170.0,92169.0,0.63198803]
[1740443448726,0.00012948,92170.0,92169.0,0.64570803]
[1740443449190,0.04692948,92170.0,92169.0,0.61198803]
[1740443449407,0.12972948,92170.0,92169.0,0.46198803]
[1740443450153,0.14620099,92170.0,92169.0,0.46198803]
[1740443450555,0.0806,92168.0,92147.0,0.2706986]
[1740443450733,0.0466,92146.0,92139.0,0.01372]
[1740443451072,0.0466,92146.0,92137.0,0.2706986]
[1740443451313,0.08680038,92138.0,92137.0,0.2706986]
[1740443451721,0.08680038,92138.0,92137.0,0.4206986]
[1740443452043,0.08680038,92138.0,92137.0,0.2706986]
[1740443452244,0.0466,92146.0,92137.0,0.2706986]
[1740443452542,0.0466,92146.0,92138.0,0.15]
[1740443452698,0.13340038,92146.0,92138.0,0.15]
[1740443453142,0.0466,92146.0,92140.0,0.02]
[1740443453345,0.5,92146.0,92145.0,0.02]
[1740443453748,0.5,92146.0,92145.0,0.49064589]
[1740443454596,0.5,92146.0,92145.0,0.60514589]
[1740443454803,0.17432513,92146.0,92145.0,0.33444729]
[1740443454971,0.0016954,92170.0,92169.0,0.04]
[1740443455171,0.00182488,92170.0,92169.0,0.53930943]
[1740443455373,0.00182488,92170.0,92169.0,0.66192764]
[1740443455655,0.00182488,92170.0,92169.0,0.90640764]
[1740443456012,0.0016974,92239.0,92212.0,0.02]
[1740443456013,0.0016994,92220.0,92212.0,0.02]
[1740443456244,0.00212908,92213.0,92212.0,0.42205076]
[1740443456570,0.00212908,92213.0,92212.0,0.44183984]
[1740443456786,0.00212908,92213.0,92212.0,0.45502927]
[1740443457390,0.00212908,92213.0,92212.0,0.42590644]
[1740443458753,0.00212908,92213.0,92212.0,0.49664535]
[1740443458965,0.00212908,92213.0,92212.0,0.48040707]
[1740443459400,0.00212908,92213.0,92212.0,0.48928085]
[1740443460385,0.00212908,92213.0,92212.0,0.41271701]
[1740443461069,0.08142908,92213.0,92196.0,0.01372]
[1740443461300,0.34702454,92205.0,92196.0,0.01372]
[1740443461758,0.08142908,92213.0,92196.0,0.01372]
[1740443461980,0.01126344,92204.0,92196.0,0.01372]
[1740443462224,0.01126344,92204.0,92199.0,0.00887378]
[1740443462934,0.01126344,92204.0,92196.0,0.01372]
[1740443463363,0.01126344,92204.0,92189.0,0.01318943]
[1740443463554,0.01126344,92204.0,92190.0,0.24899701]
[1740443463555,0.08676648,92203.0,92190.0,0.24899701]
[1740443463733,0.08176648,92203.0,92191.0,0.15]
[1740443463955,0.08176648,92203.0,92190.0,0.24899701]
[1740443463956,0.08676648,92193.0,92189.0,0.01372]
[1740443464116,0.075,92192.0,92179.0,0.01372]
[1740443464331,0.075,92192.0,92171.0,0.24899701]
[1740443464332,0.08676648,92183.0,92171.0,0.24899701]
[1740443464536,0.08676648,92172.0,92169.0,0.24448]
[1740443464721,0.082,92171.0,92169.0,0.24448]
[1740443465125,0.082,92171.0,92135.0,0.01318943]
[1740443465343,0.082,92171.0,92153.0,0.01372]
[1740443465544,0.08676648,92162.0,92145.0,0.01372]
[1740443465754,0.08676648,92162.0,92147.0,0.00097698]
[1740443466150,0.08676648,92160.0,92147.0,0.00097698]
[1740443466439,0.0487,92159.0,92147.0,0.00097698]
[1740443467036,0.08676648,92150.0,92147.0,0.00097698]
[1740443468327,0.1022263,92150.0,92147.0,0.00097698]
[1740443468992,0.0487,92159.0,92147.0,0.00097698]
[1740443469570,0.1304,92177.0,92149.0,0.15887378]
[1740443469896,0.0829,92189.0,92151.0,0.15]
[1740443470338,0.0829,92189.0,92165.0,0.00887378]
[1740443470541,0.0829,92202.0,92170.0,0.00887378]
[1740443470719,0.09637511,92201.0,92175.0,0.00887378]
[1740443470891,0.09637511,92201.0,92177.0,0.15887378]
[1740443471272,0.09637511,92201.0,92189.0,0.00887378]
[1740443471888,0.09650454,92201.0,92194.0,0.00887378]
[1740443472724,0.09650454,92201.0,92196.0,0.15]
[1740443474598,0.09650454,92201.0,92198.0,0.15]
[1740443475200,0.00012943,92201.0,92198.0,0.15]
[1740443475497,0.00012943,92201.0,92199.0,0.01372]
[1740443475782,0.00012943,92201.0,92199.0,0.26271701]
[1740443477290,0.00012943,92201.0,92200.0,0.15]
[1740443477606,0.00012943,92201.0,92199.0,0.24899701]
[1740443478464,0.00012943,92201.0,92200.0,0.15]
[1740443478692,0.00012943,92201.0,92199.0,0.24899701]
[1740443478877,0.00012943,92201.0,92200.0,0.15]
[1740443481616,0.00012943,92201.0,92200.0,0.39899701]
[1740443481999,0.00012943,92201.0,92200.0,0.15]
[1740443482205,0.0498,92199.0,92194.0,0.0008469]
[1740443482413,0.08676648,92196.0,92194.0,0.0008469]
[1740443484103,0.03112622,92195.0,92194.0,0.0008469]
[1740443484962,0.1282,92182.0,92179.0,0.24436]
[1740443485178,0.0978927,92180.0,92179.0,0.24436]
[1740443485339,0.0978927,92180.0,92179.0,0.39436]
[1740443485693,0.0978927,92180.0,92179.0,0.24436]
[1740443486708,0.10915214,92180.0,92179.0,0.24436]
[1740443487884,0.01125944,92180.0,92179.0,0.24436]
[1740443488224,0.01125944,92180.0,92179.0,0.39436]
[1740443489971,0.01125944,92180.0,92179.0,0.15]
[1740443491554,0.02238566,92180.0,92179.0,0.15]
[1740443491757,0.04238566,92180.0,92179.0,0.15]
[1740443491952,0.01112622,92173.0,92150.0,0.24899701]
[1740443492153,0.01112622,92170.0,92150.0,0.24899701]
[1740443492993,0.01112622,92169.0,92151.0,0.15]
[1740443493290,0.02,92167.0,92151.0,0.15]
[1740443495193,0.03539679,92167.0,92151.0,0.15]
[1740443495603,0.02,92156.0,92150.0,0.00012948]
[1740443495780,0.02,92151.0,92150.0,0.00012948]
[1740443495999,0.03112622,92151.0,92150.0,0.00012948]
[1740443496323,0.06323312,92151.0,92150.0,0.00012948]
[1740443496486,0.01413312,92148.0,92119.0,0.0008477]
[1740443496681,0.01413312,92148.0,92121.0,0.01372]
[1740443497290,0.01413312,92148.0,92129.0,0.15]
[1740443497935,0.00189905,92150.0,92119.0,0.0008477]
[1740443497936,0.01112622,92129.0,92119.0,0.0008477]
[1740443498288,0.01413312,92129.0,92128.0,0.0454854]
[1740443499231,0.01112622,92124.0,92119.0,0.0008477]
[1740443499510,0.01112622,92124.0,92119.0,0.00097708]
[1740443502071,0.01125783,92123.0,92119.0,0.00097708]
[1740443502272,0.01413312,92120.0,92119.0,0.00097708]
[1740443502474,0.01413312,92107.0,92090.0,0.0008481]
[1740443502675,0.00189969,92120.0,92101.0,0.00127948]
[1740443502676,0.01413312,92102.0,92101.0,0.00127948]
[1740443504849,0.02958999,92102.0,92101.0,0.00127948]
[1740443507946,0.03795639,92102.0,92101.0,0.00127948]
[1740443508975,0.16875642,92102.0,92101.0,0.00127948]
[1740443509190,0.09523312,92091.0,92090.0,0.0008481]
[1740443509541,0.42173312,92091.0,92090.0,0.0008481]
[1740443509747,0.46953312,92091.0,92090.0,0.0008481]
[1740443510158,0.09523312,92081.0,92050.0,0.24452]
[1740443510354,0.5084996,92081.0,92050.0,0.24452]
[1740443512007,0.01112622,92059.0,92051.0,0.15]
[1740443513257,0.01112622,92059.0,92058.0,0.0009776]
[1740443513600,0.0019008,92080.0,92058.0,0.0009776]
[1740443513601,0.00151658,92080.0,92058.0,0.0009776]
[1740443513715,0.08676648,92070.0,92058.0,0.0009776]
[1740443513919,0.00151658,92069.0,92058.0,0.0009776]
[1740443514560,0.045,92068.0,92058.0,0.0009776]
[1740443514735,0.00151658,92067.0,92058.0,0.0009776]
[1740443515263,0.045,92068.0,92058.0,0.0009776]
[1740443515621,0.00151658,92067.0,92058.0,0.0009776]
[1740443515826,0.00837188,92059.0,92058.0,0.0009776]
[1740443516671,0.00988846,92059.0,92058.0,0.0009776]
[1740443517494,0.2034356,92059.0,92058.0,0.0009776]
[1740443518426,0.2034356,92059.0,92026.0,0.000848]
[1740443518427,0.2487356,92059.0,92026.0,0.000848]
[1740443518650,0.08676648,92055.0,92054.0,0.0009781]
[1740443518846,0.08828306,92055.0,92054.0,0.0009781]
[1740443519187,0.08828306,92055.0,92026.0,0.000848]
[1740443519391,0.47605604,92036.0,92035.0,0.00097787]
[1740443519927,0.1993,92025.0,92000.0,0.48881001]
[1740443520096,0.35565229,92019.0,92000.0,0.48881001]
[1740443520290,0.34765604,92009.0,92000.0,0.48881001]
[1740443520539,0.12281658,92008.0,92000.0,0.48881001]
[1740443521144,0.12281658,92008.0,92000.0,0.45607535]
[1740443521352,0.02,92003.0,92000.0,0.22797535]
[1740443521557,0.00151658,92002.0,92000.0,0.12110786]
[1740443521755,0.02,91994.0,91955.0,0.00152206]
[1740443522008,0.34765604,91969.0,91934.0,0.00152206]
[1740443522211,0.00835833,91966.0,91934.0,0.00152206]
[1740443522412,0.15,91965.0,91909.0,0.0491]
[1740443522613,0.34765604,91955.0,91909.0,0.0491]
[1740443522924,0.54120318,91955.0,91910.0,0.00152289]
[1740443523056,0.34765604,91943.0,91910.0,0.00152289]
[1740443523239,0.00151658,91942.0,91927.0,0.01434722]
[1740443523441,0.00151658,91942.0,91927.0,0.00308951]
[1740443524652,0.01474345,91942.0,91927.0,0.00308951]
[1740443524851,0.00151658,91941.0,91927.0,0.00308951]
[1740443525048,0.00800522,91940.0,91927.0,0.00308951]
[1740443525679,0.00151658,91939.0,91927.0,0.00308951]
[1740443525920,0.34765604,91933.0,91927.0,0.00308951]
[1740443526073,0.3604357,91932.0,91908.0,0.0008486]
[1740443526278,0.35062826,91914.0,91908.0,0.00012925]
[1740443526496,0.00151658,91913.0,91908.0,0.00012925]
[1740443526717,0.00816006,91909.0,91908.0,0.00012925]
[1740443526883,0.00967664,91909.0,91908.0,0.00012925]
[1740443527261,0.08270713,91909.0,91908.0,0.00012925]
[1740443527436,0.02,91902.0,91836.0,0.01372]
[1740443527639,0.34765604,91895.0,91851.0,0.01702778]
[1740443527995,0.34765604,91895.0,91835.0,0.0147632]
[1740443528195,0.34765604,91876.0,91838.0,0.00043305]
[1740443528399,0.00826084,91852.0,91838.0,0.00043305]
[1740443528622,0.1168326,91876.0,91838.0,0.00043305]
[1740443528823,0.34765604,91863.0,91838.0,0.00043305]
[1740443529023,0.00820731,91839.0,91838.0,0.00043305]
[1740443529551,0.05303049,91909.0,91852.0,0.01702778]
[1740443529552,0.0803,91898.0,91852.0,0.01702778]
[1740443529755,0.00830653,91863.0,91862.0,0.01702778]
[1740443529926,0.00830653,91863.0,91862.0,0.06242778]
[1740443530326,0.0803,91929.0,91862.0,0.06242778]
[1740443530528,0.008113,91893.0,91875.0,0.01702778]
[1740443530722,0.008113,91893.0,91862.0,0.0454]
[1740443531051,0.008113,91893.0,91875.0,0.01702778]
[1740443531228,0.008113,91893.0,91882.0,0.01702778]
[1740443531429,0.19354714,91917.0,91889.0,0.01702778]
[1740443531589,0.0083172,91912.0,91901.0,0.01702778]
[1740443531794,0.19354714,91943.0,91911.0,0.01702778]
[1740443532001,0.00810152,91933.0,91920.0,0.01702778]
[1740443532829,0.00823065,91933.0,91911.0,0.01702778]
[1740443533087,0.00823065,91933.0,91913.0,0.01702778]
[1740443533873,0.00823065,91933.0,91884.0,0.0465]
[1740443534069,0.00823065,91933.0,91896.0,0.01372]
[1740443534272,0.00823065,91933.0,91904.0,0.01702778]
[1740443534674,0.00823065,91933.0,91899.0,0.01702778]
[1740443534878,0.00823065,91933.0,91887.0,0.16248]
[1740443534879,0.34765604,91932.0,91888.0,0.01702778]
[1740443535085,0.34765604,91922.0,91884.0,0.0465]
[1740443535439,0.0083813,91898.0,91884.0,0.0465]
[1740443535893,0.0083813,91898.0,91863.0,0.05444278]
[1740443536140,0.0083813,91898.0,91863.0,0.0482]
[1740443536318,0.00817066,91869.0,91843.0,0.0498]
[1740443536740,0.00817066,91869.0,91843.0,0.05023305]
[1740443537149,0.01127874,91868.0,91843.0,0.05023305]
[1740443537446,0.01127874,91868.0,91848.0,0.01702778]
[1740443537629,0.01127874,91868.0,91849.0,0.00687851]
[1740443538000,0.02562525,91868.0,91850.0,0.01702778]
[1740443538260,0.02562525,91868.0,91861.0,0.01702778]
[1740443538458,0.01127874,91868.0,91861.0,0.01702778]
[1740443539321,0.01127874,91868.0,91867.0,0.01702778]
[1740443539545,0.01127874,91868.0,91867.0,0.17863675]
[1740443539747,0.01127874,91868.0,91867.0,0.22703675]
[1740443540007,0.19354714,91921.0,91898.0,0.01702778]
[1740443540141,0.01436672,91918.0,91907.0,0.06562778]
[1740443540324,0.34765604,91957.0,91917.0,0.01702778]
[1740443540725,0.00829688,91939.0,91912.0,0.01702778]
[1740443540952,0.00829688,91939.0,91916.0,0.01702778]
[1740443541155,0.00842601,91939.0,91916.0,0.01702778]
[1740443541577,0.02298617,91939.0,91916.0,0.01702778]
[1740443541749,0.02298617,91939.0,91916.0,0.03355707]
[1740443542575,0.02298617,91939.0,91916.0,0.01652929]
[1740443542751,0.19343823,91938.0,91916.0,0.03355707]
[1740443542960,0.19105276,91937.0,91916.0,0.03355707]
[1740443546179,0.19105276,91937.0,91916.0,0.01702778]
[1740443546403,0.38449099,91937.0,91907.0,0.0486]
[1740443546638,0.23702605,91936.0,91886.0,0.0451]
[1740443546874,0.08702605,91926.0,91886.0,0.0451]
[1740443547130,0.19343823,91925.0,91886.0,0.0451]
[1740443548472,0.00826173,91902.0,91870.0,0.01702778]
[1740443548754,0.28046428,91901.0,91863.0,0.0008485]
[1740443548946,0.08702605,91890.0,91863.0,0.0008485]
[1740443549513,0.08602605,91890.0,91863.0,0.0008485]
[1740443549829,0.00806576,91867.0,91863.0,0.00097835]
[1740443551016,0.19343823,91879.0,91865.0,0.01702778]
[1740443551254,0.19343823,91911.0,91880.0,0.01702778]
[1740443551450,0.10074605,91936.0,91889.0,0.01702778]
[1740443551451,0.19343823,91930.0,91889.0,0.01702778]
[1740443551650,0.19343823,91930.0,91897.0,0.01702778]
[1740443552008,0.01125719,91929.0,91912.0,0.01702778]
[1740443552210,0.01125719,91929.0,91915.0,0.01702778]
[1740443552351,0.01125719,91929.0,91916.0,0.0496]
[1740443553066,0.0113863,91929.0,91916.0,0.0496]
[1740443554077,0.0113863,91929.0,91921.0,0.01702778]
[1740443555202,0.0113863,91929.0,91916.0,0.0496]
[1740443555617,0.0113863,91929.0,91897.0,0.0454]
[1740443555770,0.34829363,91923.0,91897.0,0.0454]
[1740443555972,0.08704167,91921.0,91897.0,0.0454]
[1740443556161,0.19343823,91920.0,91897.0,0.0454]
[1740443557601,0.00822357,91913.0,91897.0,0.0454]
[1740443557804,0.08704167,91908.0,91877.0,0.0476]
[1740443558190,0.02,91907.0,91877.0,0.0476]
[1740443558391,0.01152652,91906.0,91877.0,0.0476]
[1740443558635,0.19343823,91905.0,91877.0,0.0476]
[1740443558887,0.08704167,91898.0,91863.0,0.0008485]
[1740443559126,0.08704167,91898.0,91866.0,0.01702778]
[1740443559347,0.08704167,91888.0,91863.0,0.0008485]
[1740443559577,0.00825226,91886.0,91863.0,0.0008485]
[1740443560031,0.19343823,91885.0,91863.0,0.0008485]
[1740443560262,0.19343823,91885.0,91863.0,0.00097835]
[1740443561167,0.19343823,91885.0,91842.0,0.01702778]
[1740443561400,0.19356727,91885.0,91842.0,0.01702778]
[1740443561635,0.02018195,91884.0,91877.0,0.0008483]
[1740443561841,0.19343823,91883.0,91877.0,0.0008483]
[1740443562682,0.00012904,91885.0,91877.0,0.0008483]
[1740443562876,0.00012904,91885.0,91884.0,0.01702778]
[1740443563088,0.00012904,91885.0,91884.0,0.06492778]
[1740443563380,0.19343823,91951.0,91903.0,0.01702778]
[1740443563617,0.01957433,91929.0,91903.0,0.01702778]
[1740443563811,0.01125719,91929.0,91903.0,0.01702778]
[1740443564219,0.01125719,91929.0,91903.0,0.09272778]
[1740443564754,0.01125719,91929.0,91903.0,0.0757]
[1740443564956,0.01125719,91929.0,91903.0,0.01702778]
[1740443566221,0.01125719,91929.0,91903.0,0.01632335]
[1740443566780,0.01125719,91929.0,91903.0,0.01537179]
[1740443566983,0.00823593,91935.0,91903.0,0.01537179]
[1740443567183,0.05818615,91904.0,91903.0,0.01537179]
[1740443567450,0.05818615,91904.0,91903.0,0.01442148]
[1740443567669,0.19343823,91951.0,91910.0,0.01442148]
[1740443567848,0.01127472,91947.0,91910.0,0.01442148]
[1740443568605,0.01127472,91947.0,91910.0,0.16442148]
[1740443568803,0.00805058,91945.0,91910.0,0.18086363]
[1740443569381,0.01127472,91947.0,91910.0,0.18086363]
[1740443569580,0.15,91970.0,91910.0,0.18086363]
[1740443569788,0.0112625,91962.0,91910.0,0.18086363]
[1740443570283,0.0112625,91962.0,91910.0,0.22876363]
[1740443570488,0.0112625,91962.0,91918.0,0.01442148]
[1740443570773,0.19118249,91919.0,91918.0,0.09092148]
[1740443571007,0.06308249,91919.0,91918.0,0.25795747]
[1740443571158,0.0112625,91962.0,91936.0,0.01442148]
[1740443571357,0.0112625,91962.0,91936.0,0.02814148]
[1740443571765,0.08702605,91988.0,91936.0,0.02814148]
[1740443571965,0.07672305,91988.0,91936.0,0.02814148]
[1740443572172,0.01125101,91972.0,91962.0,0.01442148]
[1740443572332,0.0082022,91983.0,91962.0,0.01442148]
[1740443572529,0.01125824,91972.0,91962.0,0.01442148]
[1740443572866,0.0082022,91983.0,91962.0,0.01442148]
[1740443573076,0.01128013,91972.0,91962.0,0.01442148]
[1740443573284,0.0082022,91983.0,91962.0,0.01442148]
[1740443573697,0.01127867,91972.0,91970.0,0.01442148]
[1740443573900,0.01127867,91972.0,91939.0,0.15]
[1740443573901,0.01482602,91988.0,91976.0,0.01442148]
[1740443574120,0.01482602,91988.0,91939.0,0.15]
[1740443574121,0.01125054,91982.0,91980.0,0.01442148]
[1740443574323,0.01125054,91982.0,91981.0,0.01442148]
[1740443574548,0.01025054,91982.0,91981.0,0.01442148]
[1740443577309,0.00503672,91982.0,91981.0,0.01442148]
[1740443577648,0.01482602,91988.0,91985.0,0.01442148]
[1740443578484,0.01482602,91988.0,91967.0,0.00152189]
[1740443578485,0.01482602,91988.0,91987.0,0.01442148]
[1740443578667,0.00043262,91988.0,91987.0,0.01442148]
[1740443579715,0.00043262,91988.0,91982.0,0.01442148]
[1740443579923,0.00043262,91988.0,91951.0,0.15]
[1740443580117,0.00043262,91988.0,91964.0,0.01442148]
[1740443580335,0.00043262,91988.0,91970.0,0.01442148]
[1740443580559,0.00043262,91988.0,91952.0,0.03669976]
[1740443580762,0.00043262,91988.0,91964.0,0.01442148]